bitfinex/quotes_SOLUSD_20250528
["timestamp","ask_amount","ask_price","bid_price","bid_amount"]
[1748405765755,5.72442612,174.69,174.66,26.0]
[1748405767856,5.72409845,174.7,174.66,26.0]
[1748405776867,21.93500654,174.7,174.66,26.0]
[1748405777971,159.9086931,174.72,174.66,26.0]
[1748405777972,16.09095969,174.71,174.66,26.0]
[1748405779869,16.09095969,174.71,174.67,8.88]
[1748405780263,5.72377082,174.71,174.67,8.88]
[1748405780464,16.09095969,174.71,174.67,8.88]
[1748405786969,5.72377082,174.71,174.67,8.88]
[1748405789484,5.72377082,174.71,174.68,8.88]
[1748405794296,5.72377082,174.71,174.69,8.88]
[1748405797194,16.09095969,174.71,174.69,8.88]
[1748405799085,16.09095969,174.71,174.7,8.88]
[1748405805986,18.23482958,174.71,174.7,8.88]
[1748405806189,20.37869947,174.71,174.7,8.88]
[1748405806583,18.23482958,174.71,174.7,8.88]
[1748405807174,20.37869947,174.71,174.7,8.88]
[1748405807680,18.23482958,174.71,174.7,8.88]
[1748405808077,20.37869947,174.71,174.7,8.88]
[1748405808283,18.23482958,174.71,174.7,8.88]
[1748405808485,20.37871018,174.71,174.7,8.88]
[1748405808688,18.23482958,174.71,174.7,8.88]
[1748405810015,20.37869946,174.71,174.7,8.88]
[1748405810182,20.37871162,174.71,174.7,8.88]
[1748405810803,18.23482958,174.71,174.7,8.88]
[1748405811883,20.37877311,174.71,174.7,8.88]
[1748405812086,18.23482958,174.71,174.7,8.88]
[1748405812285,20.37877606,174.71,174.7,8.88]
[1748405812480,18.23482958,174.71,174.7,8.88]
[1748405812684,20.37877923,174.71,174.7,8.88]
[1748405812904,18.23482958,174.71,174.7,8.88]
[1748405813481,20.37878553,174.71,174.7,8.88]
[1748405813681,18.23482958,174.71,174.7,8.88]
[1748405813881,20.3787735,174.71,174.7,8.88]
[1748405815292,22.52271101,174.71,174.7,8.88]
[1748405815601,22.52271129,174.71,174.7,8.88]
[1748405815983,20.3787735,174.71,174.7,8.88]
[1748405816632,10.01158463,174.71,174.7,8.88]
[1748405816990,20.3787735,174.71,174.7,8.88]
[1748405820398,10.01158463,174.71,174.7,8.88]
[1748405824135,20.3787735,174.71,174.7,8.88]
[1748405832333,10.01158463,174.71,174.7,8.88]
[1748405832520,20.3787735,174.71,174.7,8.88]
[1748405836138,10.01158463,174.71,174.7,8.88]
[1748405836314,20.3787735,174.71,174.7,8.88]
[1748405839423,10.01158463,174.71,174.7,8.88]
[1748405842241,4.28781381,174.71,174.7,8.88]
[1748405843227,10.01158463,174.71,174.7,8.88]
[1748405845932,20.3787735,174.71,174.7,8.88]
[1748405851361,164.24964886,174.7,174.65,8.88]
[1748405851533,18.64964886,174.65,174.61,82.32]
[1748405851733,10.36718887,174.62,174.61,82.32]
[1748405852033,10.36718887,174.62,174.6,8.88]
[1748405852442,10.36718887,174.61,174.6,8.88]
[1748405853353,16.09423772,174.61,174.6,8.88]
[1748405859039,76.21264206,174.61,174.6,8.88]
[1748405859981,34.74388658,174.61,174.6,8.88]
[1748405862971,24.37669771,174.61,174.6,8.88]
[1748405863143,16.09423772,174.61,174.6,8.88]
[1748405868350,16.09423772,174.61,174.58,8.88]
[1748405868550,10.36718887,174.59,174.58,8.88]
[1748405871360,16.09489377,174.59,174.58,8.88]
[1748405884773,10.36718887,174.59,174.58,8.88]
[1748405886877,16.09489377,174.59,174.58,8.88]
[1748405893492,30.41415604,174.59,174.54,8.88]
[1748405893673,10.36718887,174.55,174.54,8.88]
[1748405895008,16.09620634,174.55,174.54,8.88]
[1748405896906,5.72901747,174.55,174.54,8.88]
[1748405897114,5.72870318,174.56,174.54,8.88]
[1748405898186,145.6,174.58,174.55,1.5806]
[1748405901300,145.6,174.58,174.55,5.59086838]
[1748405901800,16.09358181,174.63,174.56,6.5047]
[1748405901994,5.72639294,174.63,174.57,0.14216157]
[1748405903299,5.72639294,174.63,174.57,4.15192829]
[1748405905312,16.09358181,174.63,174.57,0.14216157]
[1748405905697,10.36718887,174.61,174.56,6.5047]
[1748405906201,10.36718887,174.62,174.56,6.5047]
[1748405907089,16.09358181,174.63,174.56,10.51476937]
[1748405907408,5.72639294,174.63,174.56,10.51476937]
[1748405907596,16.09358181,174.63,174.56,10.51476937]
[1748405907908,21.93949654,174.63,174.56,10.51476937]
[1748405922320,21.93949654,174.63,174.57,8.86]
[1748405923802,151.32616468,174.64,174.58,0.14216157]
[1748405924026,145.6,174.64,174.6,26.0]
[1748405924212,5.72540936,174.66,174.6,26.0]
[1748405924408,5.72540936,174.66,174.6,30.00909871]
[1748405925919,21.93851296,174.66,174.6,26.0]
[1748405927930,16.09815629,174.66,174.6,26.0]
[1748405933617,5.72540936,174.66,174.6,30.00915722]
[1748405933819,5.72540936,174.66,174.6,64.66915722]
[1748405939237,5.72540936,174.66,174.6,60.66]
[1748405940410,5.72540936,174.66,174.6,64.66906348]
[1748405941023,5.7251143,174.67,174.61,0.14216157]
[1748405941226,145.6,174.68,174.61,6.80016157]
[1748405941535,5.72453799,174.69,174.61,6.80016157]
[1748405942636,5.72409845,174.7,174.63,0.14216157]
[1748405942826,5.72409845,174.7,174.64,8.86]
[1748405943537,151.32388537,174.71,174.65,0.14216157]
[1748405944833,151.32388537,174.71,174.67,26.0]
[1748405946043,151.32388537,174.71,174.68,2.12713725]
[1748405946243,151.32388537,174.71,174.69,2.12713725]
[1748405946449,151.32388537,174.71,174.7,10.98713725]
[1748405947025,151.32388537,174.71,174.7,10.98515103]
[1748405947338,151.32388537,174.71,174.7,10.98529063]
[1748405947636,161.6966323,174.71,174.7,8.86]
[1748405947846,161.6966323,174.71,174.7,13.11158723]
[1748405948024,180.34628116,174.71,174.7,8.86]
[1748405948224,180.34628116,174.71,174.7,13.112507]
[1748405948427,34.74628116,174.71,174.7,17.36563646]
[1748405948626,34.74628116,174.71,174.7,6.37889794]
[1748405948836,41.09048116,174.71,174.7,6.37889794]
[1748405949949,46.92644626,174.71,174.7,6.37889794]
[1748405950536,63.27731986,174.71,174.7,6.37889794]
[1748405950741,26.0,174.68,174.65,8.86]
[1748405951046,16.20871203,174.66,174.65,8.86]
[1748405952149,21.93412139,174.66,174.65,8.86]
[1748405958348,40.58377025,174.66,174.65,8.86]
[1748405958555,18.64964886,174.65,174.57,82.36]
[1748405958750,16.20871203,174.6,174.58,8.86]
[1748405960049,16.20871203,174.61,174.58,8.86]
[1748405960247,5.72737686,174.6,174.58,8.86]
[1748405971971,10.37870947,174.61,174.58,8.86]
[1748405972779,10.37870947,174.62,174.58,8.86]
[1748405973955,5.72704885,174.61,174.58,8.86]
[1748405974478,5.72639294,174.63,174.58,8.86]
[1748405974772,151.32613894,174.64,174.58,12.29679179]
[1748405974966,151.32613894,174.64,174.58,46.93679179]
[1748405978477,151.32613894,174.64,174.58,46.9368114]
[1748405978783,161.70484841,174.64,174.58,46.9368114]
[1748405981879,145.6,174.64,174.58,46.9368114]
[1748405982780,79.28964886,174.7,174.58,46.9368114]
[1748405982781,16.10424547,174.66,174.59,0.14216157]
[1748405983781,16.10424547,174.66,174.6,3.43642611]
[1748405983979,10.37870947,174.65,174.6,3.43642611]
[1748405984184,10.37870947,174.65,174.59,3.57871491]
[1748405985387,10.37870947,174.64,174.58,43.5]
[1748405986374,5.72639294,174.63,174.58,43.5]
[1748405989988,10.37870947,174.62,174.58,8.86]
[1748405990476,5.72704885,174.61,174.58,8.86]
[1748405991484,16.10554804,174.62,174.58,8.86]
[1748405991685,5.72643427,174.63,174.58,8.86]
[1748405992775,5.72606504,174.64,174.58,12.29680472]
[1748405993868,10.37870947,174.65,174.58,12.29680472]
[1748405993869,16.20944966,174.65,174.58,12.29680472]
[1748405995189,5.72606504,174.64,174.58,12.29680472]
[1748405996287,21.93518684,174.65,174.58,12.29680472]
[1748405999776,5.72573718,174.65,174.58,12.29680472]
[1748406001096,5.72573718,174.65,174.59,29.43657009]
[1748406001973,5.72573718,174.65,174.6,34.86]
[1748406002588,21.93518684,174.65,174.6,34.86]
[1748406002792,16.20944966,174.63,174.6,8.86]
[1748406003077,16.20944966,174.62,174.6,8.86]
[1748406003486,16.20944966,174.63,174.6,8.86]
[1748406005010,5.72672087,174.62,174.6,8.86]
[1748406005218,5.72606504,174.64,174.6,8.86]
[1748406005454,21.9355147,174.64,174.6,8.86]
[1748406006301,21.44350489,174.64,174.6,8.86]
[1748406007499,5.23405523,174.64,174.6,8.86]
[1748406013815,151.32583436,174.65,174.6,12.29640482]
[1748406014116,145.6,174.65,174.61,0.14216157]
[1748406014317,145.6,174.65,174.61,34.78216157]
[1748406015114,145.6,174.65,174.61,38.21833605]
[1748406018123,5.72475383,174.68,174.61,38.21833605]
[1748406018832,21.93420349,174.68,174.61,38.21833605]
[1748406020032,16.09522862,174.68,174.61,38.21833605]
[1748406020906,5.72475383,174.68,174.61,38.21833605]
[1748406021129,151.32451397,174.69,174.61,38.21833605]
[1748406021638,145.6,174.69,174.64,26.0]
[1748406021845,145.6,174.69,174.65,34.64]
[1748406022139,5.72413885,174.7,174.66,8.86]
[1748406022347,16.19757909,174.76,174.69,26.0]
[1748406022913,16.19757909,174.75,174.69,26.0]
[1748406023128,5.72278814,174.74,174.68,0.14216157]
[1748406024815,20.02653064,174.77,174.68,0.14216157]
[1748406025022,16.19757909,174.75,174.69,26.0]
[1748406026044,5.72278814,174.74,174.69,26.0]
[1748406027645,21.92036723,174.74,174.69,26.0]
[1748406029277,16.19757909,174.72,174.69,26.0]
[1748406029453,16.19757909,174.73,174.69,26.0]
[1748406030262,21.92036723,174.74,174.69,26.0]
[1748406030749,21.92014299,174.75,174.69,26.0]
[1748406031058,21.92014299,174.75,174.69,29.43464603]
[1748406032456,16.19757909,174.74,174.69,29.43464603]
[1748406034938,21.92038312,174.74,174.69,29.43464603]
[1748406036868,21.92003974,174.75,174.69,29.43464603]
[1748406037672,167.51983499,174.76,174.7,0.14216157]
[1748406038661,145.6,174.76,174.71,26.0]
[1748406038881,145.6,174.76,174.72,8.86]
[1748406040176,151.32214012,174.76,174.72,8.86]
[1748406042166,16.19757909,174.74,174.72,8.86]
[1748406044186,5.72311566,174.73,174.72,8.86]
[1748406050993,21.92069475,174.73,174.72,8.86]
[1748406052201,5.72311566,174.73,174.72,8.86]
[1748406059515,16.19757909,174.74,174.72,8.86]
[1748406059918,10.36160219,174.74,174.72,8.86]
[1748406060115,5.72246065,174.75,174.72,8.86]
[1748406060300,16.08406284,174.75,174.72,8.86]
[1748406061904,159.90533302,174.76,174.72,8.86]
[1748406061905,5.72311566,174.73,174.72,8.86]
[1748406065130,145.6,174.76,174.72,8.86]
[1748406065323,5.72115109,174.79,174.73,0.14216157]
[1748406065541,16.08275328,174.79,174.73,0.14216157]
[1748406065748,10.36160219,174.78,174.73,0.14216157]
[1748406066445,5.7218058,174.77,174.73,0.14216157]
[1748406067226,16.08316969,174.78,174.73,0.14216157]
[1748406067722,16.08316969,174.78,174.73,3.57600938]
[1748406067945,21.90414667,174.78,174.73,3.57600938]
[1748406068147,5.7215675,174.78,174.73,3.57600938]
[1748406068347,21.90414667,174.78,174.73,3.57600938]
[1748406070542,16.18257917,174.78,174.73,3.57600938]
[1748406070747,5.72082379,174.8,174.73,3.57600938]
[1748406070937,16.18257917,174.79,174.73,3.57600938]
[1748406071342,21.90340296,174.8,174.75,26.0]
[1748406074735,151.32060785,174.81,174.75,29.43343166]
[1748406074940,167.50318702,174.81,174.75,29.43343166]
[1748406075437,16.18257917,174.8,174.75,0.14216157]
[1748406076662,21.90371576,174.8,174.75,0.14216157]
[1748406078565,5.72113659,174.8,174.75,0.14216157]
[1748406078770,5.72113659,174.8,174.75,3.5756269]
[1748406079375,5.72113659,174.8,174.75,0.14216157]
[1748406079859,21.90371576,174.8,174.75,0.14216157]
[1748406083886,21.90371576,174.8,174.75,4.77993526]
[1748406084488,5.72113659,174.8,174.75,4.77993526]
[1748406084689,21.90371576,174.8,174.75,4.77993526]
[1748406085982,16.18257917,174.78,174.73,0.14216157]
[1748406086183,16.18257917,174.77,174.72,34.86]
[1748406086489,16.18257917,174.77,174.72,69.46]
[1748406087371,16.18257917,174.77,174.72,72.89402486]
[1748406087575,16.18257917,174.78,174.72,72.89402486]
[1748406088072,152.0133,174.81,174.73,0.14216157]
[1748406088295,16.18257917,174.8,174.73,0.14216157]
[1748406089995,10.35373916,174.8,174.74,3.43367288]
[1748406090610,10.35373916,174.8,174.75,0.14216157]
[1748406090805,155.95373916,174.81,174.75,0.14216157]
[1748406091385,155.95373916,174.81,174.75,26.14216157]
[1748406092489,155.95373916,174.81,174.76,3.43327992]
[1748406093815,10.35373916,174.8,174.76,3.43327992]
[1748406094191,10.35373916,174.8,174.75,29.57556483]
[1748406094825,10.35373916,174.8,174.76,8.84]
[1748406095035,16.07458103,174.8,174.76,8.84]
[1748406095700,10.35373916,174.8,174.76,8.84]
[1748406097823,16.07456961,174.8,174.76,8.84]
[1748406098007,10.35373916,174.8,174.76,12.27327932]
[1748406099115,10.35373916,174.8,174.76,8.84]
[1748406099321,10.35373916,174.77,174.76,8.84]
[1748406101110,16.07554496,174.77,174.76,8.84]
[1748406105333,20.02288328,174.8,174.76,8.84]
[1748406105518,10.35373916,174.77,174.76,8.84]
[1748406107323,34.72519382,174.77,174.76,8.84]
[1748406123450,18.64964886,174.76,174.73,8.84]
[1748406123662,10.35373916,174.74,174.73,8.84]
[1748406123830,29.00338802,174.74,174.73,8.84]
[1748406124738,34.72617616,174.74,174.73,8.84]
[1748406133453,31.72278814,174.74,174.73,8.84]
[1748406133645,16.0765273,174.74,174.73,8.84]
[1748406133839,5.72278814,174.74,174.73,8.84]
[1748406134045,16.0765273,174.74,174.73,8.84]
[1748406134247,5.72278814,174.74,174.73,8.84]
[1748406134448,16.0765273,174.74,174.73,8.84]
[1748406134663,5.72278814,174.74,174.73,8.84]
[1748406134841,16.0765273,174.74,174.73,8.84]
[1748406135155,10.35373916,174.76,174.73,8.84]
[1748406135345,38.66909632,174.83,174.73,10.4323]
[1748406135540,10.35373916,174.77,174.73,10.4323]
[1748406135745,38.66909632,174.83,174.73,10.4323]
[1748406136057,10.35373916,174.74,174.73,10.4323]
[1748406136465,18.79181043,174.81,174.73,10.4323]
[1748406136763,10.35373916,174.74,174.73,10.4323]
[1748406137434,10.35373916,174.74,174.73,8.84]
[1748406137943,16.0765273,174.74,174.73,8.84]
[1748406146355,18.64964886,174.73,174.7,8.84]
[1748406146563,10.35373916,174.71,174.7,8.84]
[1748406148482,16.07750998,174.71,174.7,8.84]
[1748406149648,5.72377082,174.71,174.7,8.84]
[1748406149849,16.07750998,174.71,174.7,8.84]
[1748406150077,21.91969949,174.71,174.7,8.84]
[1748406150969,16.19592867,174.71,174.7,8.84]
[1748406151155,5.7234916,174.72,174.7,8.84]
[1748406151156,21.91942027,174.72,174.7,8.84]
[1748406151360,16.19592867,174.71,174.7,8.84]
[1748406152664,21.91969949,174.71,174.7,8.84]
[1748406165289,54.8787754,174.71,174.68,8.84]
[1748406165489,16.19592867,174.69,174.68,8.84]
[1748406165912,32.39185734,174.69,174.68,8.84]
[1748406166795,38.11628346,174.69,174.68,8.84]
[1748406167571,56.76593232,174.69,174.68,8.84]
[1748406169991,76.23587163,174.69,174.68,8.84]
[1748406170987,57.58622277,174.69,174.68,8.84]
[1748406171986,38.13525906,174.69,174.68,8.84]
[1748406174989,21.92984259,174.69,174.68,8.84]
[1748406186511,24.37374731,174.7,174.68,8.84]
[1748406186835,16.20541647,174.69,174.68,8.84]
[1748406187927,21.92984259,174.69,174.68,8.84]
[1748406192006,16.09455236,174.69,174.68,8.84]
[1748406200861,5.72442612,174.69,174.68,8.84]
[1748406201143,16.09455236,174.69,174.68,8.84]
[1748406206033,10.37012624,174.69,174.68,8.84]
[1748406206957,16.09455236,174.69,174.68,8.84]
[1748406211846,16.09455236,174.69,174.67,8.84]
[1748406212039,10.37012624,174.68,174.67,8.84]
[1748406214037,16.09488007,174.68,174.67,8.84]
[1748406216445,161.69488007,174.68,174.67,8.84]
[1748406223648,180.34452893,174.68,174.67,8.84]
[1748406223853,34.74452893,174.68,174.67,8.84]
[1748406226764,24.37440269,174.68,174.67,8.84]
[1748406226971,34.74452893,174.68,174.67,8.84]
[1748406232082,18.64964886,174.67,174.64,8.84]
[1748406232284,10.37012624,174.65,174.64,8.84]
[1748406233488,16.09586342,174.65,174.64,8.84]
[1748406234359,145.6,174.64,174.62,8.84]
[1748406234577,10.37012624,174.63,174.62,8.84]
[1748406235654,16.09651918,174.63,174.62,8.84]
[1748406240480,34.74616804,174.63,174.62,8.84]
[1748406241369,34.74616804,174.63,174.57,8.84]
[1748406241370,18.64964886,174.62,174.57,8.84]
[1748406241576,10.37012624,174.58,174.57,8.84]
[1748406242791,24.37735376,174.59,174.57,8.84]
[1748406242998,10.37012624,174.58,174.57,8.84]
[1748406243176,24.37735376,174.59,174.57,8.84]
[1748406243683,29.0197751,174.58,174.57,8.84]
[1748406244586,34.74780809,174.58,174.57,8.84]
[1748406246095,49.06789057,174.58,174.52,8.84]
[1748406246399,10.37012624,174.53,174.52,8.84]
[1748406246894,16.09980022,174.53,174.52,8.84]
[1748406250501,34.74944908,174.53,174.52,8.84]
[1748406252296,26.0,174.5,174.47,8.86]
[1748406252497,49.07363403,174.53,174.47,8.86]
[1748406252498,10.37012624,174.48,174.47,8.86]
[1748406253188,44.64964886,174.52,174.47,8.86]
[1748406253491,16.10144215,174.48,174.47,8.86]
[1748406259612,10.37012624,174.48,174.47,8.86]
[1748406260596,16.10144215,174.48,174.47,8.86]
[1748406263329,34.75109101,174.48,174.47,8.86]
[1748406264586,34.75109101,174.48,174.38,116.2758]
[1748406264587,49.07938078,174.48,174.42,9.0]
[1748406264792,10.37012624,174.43,174.42,9.0]
[1748406266715,16.10308502,174.43,174.42,9.0]
[1748406270313,18.64964886,174.44,174.42,9.0]
[1748406270522,10.37012624,174.43,174.42,9.0]
[1748406272440,16.10308502,174.43,174.42,9.0]
[1748406281503,161.70308502,174.43,174.42,9.0]
[1748406287010,180.35273388,174.43,174.42,9.0]
[1748406288535,18.64964886,174.42,174.38,10.5931]
[1748406288736,10.37012624,174.39,174.38,10.5931]
[1748406289318,145.6,174.41,174.38,9.04]
[1748406289625,10.37012624,174.39,174.38,9.04]
[1748406290034,16.10439999,174.39,174.38,9.04]
[1748406293148,16.10439999,174.39,174.38,9.04]
[1748406293337,16.10417738,174.4,174.38,9.04]
[1748406294345,5.73405114,174.4,174.38,9.04]
[1748406294731,16.10439999,174.39,174.38,9.04]
[1748406298623,16.10407119,174.4,174.38,9.04]
[1748406301125,10.37012624,174.4,174.38,9.04]
[1748406301529,5.73402611,174.4,174.38,9.04]
[1748406301734,155.97012624,174.41,174.38,9.04]
[1748406301930,151.33367453,174.41,174.38,9.04]
[1748406302228,145.6,174.41,174.38,9.04]
[1748406302638,155.97012624,174.41,174.38,9.04]
[1748406303533,161.70376188,174.41,174.38,9.04]
[1748406307731,145.6,174.45,174.38,9.04]
[1748406307954,10.37012624,174.44,174.38,9.04]
[1748406308859,16.10275637,174.44,174.38,12.48073109]
[1748406309666,16.10275637,174.44,174.39,0.9]
[1748406310351,16.10331537,174.43,174.39,0.9]
[1748406311858,5.73318913,174.43,174.39,0.9]
[1748406312041,5.73318913,174.43,174.39,2.4257]
[1748406313411,16.10331537,174.43,174.39,2.4257]
[1748406313569,145.6,174.45,174.39,2.4257]
[1748406313570,16.10364509,174.42,174.39,2.4257]
[1748406313784,5.73351885,174.42,174.39,2.4257]
[1748406314745,5.73351885,174.42,174.39,1.5257]
[1748406316249,10.37012624,174.42,174.39,1.5257]
[1748406316465,10.37012624,174.41,174.38,9.04]
[1748406319670,5.73394495,174.4,174.38,9.04]
[1748406321675,10.37012624,174.39,174.38,9.04]
[1748406323072,16.10439999,174.39,174.38,9.04]
[1748406324180,5.73427375,174.39,174.38,9.04]
[1748406324558,16.10439999,174.39,174.38,9.04]
[1748406334088,34.75404885,174.39,174.38,9.04]
[1748406335282,24.38392261,174.39,174.38,9.04]
[1748406335594,34.75404885,174.39,174.38,9.04]
[1748406340179,16.10439999,174.39,174.38,9.04]
[1748406346486,34.75404885,174.39,174.38,9.04]
[1748406347300,18.64964886,174.38,174.33,9.02]
[1748406347582,10.37012624,174.35,174.33,9.02]
[1748406348726,5.73591832,174.34,174.33,9.02]
[1748406349584,16.10604456,174.34,174.33,9.02]
[1748406352003,5.73558933,174.35,174.33,9.02]
[1748406352193,10.37012624,174.34,174.33,9.02]
[1748406353512,16.10604456,174.34,174.33,9.02]
[1748406355726,34.75569342,174.34,174.33,9.02]
[1748406363105,5.73526038,174.36,174.33,9.02]
[1748406366126,10.37012624,174.36,174.33,9.02]
[1748406366816,10.37012624,174.35,174.33,9.02]
[1748406367220,5.73591832,174.34,174.33,9.02]
[1748406367520,16.10604456,174.34,174.33,9.02]
[1748406369923,22.0025916,174.34,174.33,9.02]
[1748406370821,40.65224046,174.34,174.33,9.02]
[1748406380349,24.38556718,174.34,174.33,9.02]
[1748406380528,40.65224046,174.34,174.33,9.02]
[1748406385227,18.64964886,174.33,174.3,9.0]
[1748406385427,16.26667328,174.31,174.3,9.0]
[1748406387369,22.00324969,174.32,174.3,9.0]
[1748406388159,16.26667328,174.31,174.3,9.0]
[1748406389358,5.73690551,174.31,174.3,9.0]
[1748406389542,22.00357879,174.31,174.3,9.0]
[1748406391936,10.41451692,174.31,174.3,9.0]
[1748406393370,16.15142243,174.31,174.3,9.0]
[1748406393774,5.73670442,174.32,174.3,9.0]
[1748406395044,10.41451692,174.31,174.3,9.0]
[1748406395879,16.15142243,174.31,174.3,9.0]
[1748406396677,5.73690551,174.31,174.3,9.0]
[1748406397041,16.15142243,174.31,174.3,9.0]
[1748406399979,34.80107129,174.31,174.3,9.0]
[1748406402262,24.38655437,174.31,174.3,9.0]
[1748406402454,34.80107129,174.31,174.3,9.0]
[1748406403583,24.38655437,174.31,174.3,9.0]
[1748406403890,34.80107129,174.31,174.3,9.0]
[1748406405588,60.80107129,174.31,174.3,9.0]
[1748406405951,50.38655437,174.31,174.3,9.0]
[1748406406171,60.80107129,174.31,174.3,9.0]
[1748406406969,50.38655437,174.31,174.3,9.0]
[1748406407367,60.80107129,174.31,174.3,9.0]
[1748406407565,18.64964886,174.3,174.28,9.0]
[1748406407800,5.73756383,174.29,174.28,9.0]
[1748406408516,5.73756383,174.29,174.28,9.14]
[1748406409418,5.73756383,174.29,174.22,11.09532138]
[1748406409717,5.73756383,174.29,174.23,9.14]
[1748406409718,151.33756383,174.29,174.23,9.14]
[1748406410674,151.33756383,174.29,174.23,16.21223667]
[1748406413697,161.75208075,174.29,174.23,16.21223667]
[1748406414072,161.75208075,174.29,174.24,9.14]
[1748406415690,10.41451692,174.28,174.24,9.14]
[1748406416324,5.73822229,174.27,174.24,9.14]
[1748406420625,5.73789304,174.28,174.24,9.14]
[1748406420933,16.15240996,174.28,174.24,9.14]
[1748406422220,10.41451692,174.27,174.24,9.14]
[1748406423122,10.41451692,174.26,174.24,9.14]
[1748406424133,10.41451692,174.25,174.24,9.14]
[1748406424334,16.15339783,174.25,174.24,9.14]
[1748406424628,5.73888091,174.25,174.24,9.14]
[1748406425406,16.15339783,174.25,174.24,9.14]
[1748406426398,5.73888091,174.25,174.24,9.14]
[1748406426603,16.15339783,174.25,174.24,9.14]
[1748406427200,34.80304669,174.25,174.24,9.14]
[1748406427624,18.64964886,174.24,174.23,7.07223667]
[1748406427819,29.06416578,174.24,174.23,7.07223667]
[1748406428340,10.41451692,174.24,174.23,7.07223667]
[1748406429604,16.1537272,174.24,174.23,7.07223667]
[1748406429809,5.73921028,174.24,174.23,7.07223667]
[1748406430006,16.1537272,174.24,174.23,7.07223667]
[1748406430202,5.73921028,174.24,174.23,7.07223667]
[1748406430509,16.1537272,174.24,174.23,7.07223667]
[1748406439142,102.46144374,174.24,174.23,7.07223667]
[1748406439304,116.80946945,174.24,174.2,9.14]
[1748406439512,10.41451692,174.21,174.2,9.14]
[1748406441314,16.15471553,174.21,174.2,9.14]
[1748406442000,5.74019861,174.21,174.2,9.14]
[1748406442204,16.15471553,174.21,174.2,9.14]
[1748406444308,5.73994895,174.22,174.2,9.14]
[1748406447121,156.01451692,174.23,174.2,9.14]
[1748406447122,145.6,174.23,174.2,9.14]
[1748406448848,145.6,174.23,174.2,12.01026136]
[1748406449051,170.35807443,174.3,174.21,26.14216157]
[1748406449226,170.35807443,174.3,174.22,35.24]
[1748406449424,170.35807443,174.3,174.22,42.37446301]
[1748406449918,5.73756383,174.29,174.22,42.37446301]
[1748406450115,16.15208075,174.29,174.22,42.37446301]
[1748406450348,16.15208075,174.29,174.22,45.24436736]
[1748406451854,5.73756383,174.29,174.22,45.24436736]
[1748406452041,16.15208075,174.29,174.22,45.24436736]
[1748406453455,5.73756383,174.29,174.23,3.01184313]
[1748406453655,16.15208075,174.29,174.23,3.01184313]
[1748406454144,10.41451692,174.27,174.22,35.24]
[1748406454443,10.41451692,174.28,174.22,35.24]
[1748406455428,16.15208075,174.29,174.22,35.24]
[1748406455823,16.15208075,174.29,174.22,38.10992741]
[1748406456745,5.73756383,174.29,174.22,38.10992741]
[1748406456922,16.15208075,174.29,174.22,38.10992741]
[1748406457322,16.15208075,174.29,174.23,3.01181901]
[1748406457323,10.41451692,174.29,174.23,3.01181901]
[1748406458033,16.27389811,174.29,174.23,3.01181901]
[1748406458640,22.01154692,174.29,174.23,3.01181901]
[1748406466656,16.27389811,174.29,174.23,3.01181901]
[1748406467351,167.61122442,174.3,174.25,26.0]
[1748406467552,167.61122442,174.3,174.26,9.2]
[1748406470542,145.6,174.3,174.26,9.2]
[1748406471839,145.6,174.3,174.26,12.06926541]
[1748406475063,145.6,174.3,174.26,47.24926541]
[1748406479685,5.73680506,174.32,174.26,47.24926541]
[1748406480272,5.73680506,174.32,174.26,73.24926541]
[1748406485973,10.411201,174.32,174.26,73.24926541]
[1748406488287,5.73690551,174.31,174.26,47.24926541]
[1748406488487,5.73690551,174.31,174.26,44.38]
[1748406488983,5.73690551,174.31,174.26,47.24925828]
[1748406491986,5.73690551,174.31,174.26,44.38]
[1748406492190,5.73690551,174.31,174.26,47.24927055]
[1748406493987,16.14744834,174.33,174.26,47.24927055]
[1748406494392,5.73624734,174.33,174.26,47.24927055]
[1748406494560,10.411201,174.32,174.27,9.14]